[Event "7th Francophone-ch 2019"]
[Site "Paris"]
[Date "2019.08.07"]
[Round "4.2"]
[White "Flom, Gabriel"]
[Black "Defromont, Benjamin"]
[Result "1/2-1/2"]
[ECO "E48"]
[WhiteElo "2494"]
[BlackElo "2245"]
[Annotator "ChessBase"]
[PlyCount "128"]
[EventDate "2019.08.04"]
[EventType "swiss"]
[EventCountry "FRA"]
[SourceTitle "playchess.com"]
[Source "ChessBase"]
[SourceQuality "1"]
[TimeControl "40/5400+30:1800+30"]

1. d4 {[%emt 0:00:00]} Nf6 {[%emt 0:00:00]} 2. c4 {[%emt 0:00:00]} e6 {[%emt 0:00:00]} 3. Nc3 {[%emt 0:00:00]} Bb4 {[%emt 0:00:07]} 4. e3 {[%emt 0:02:06]} O-O {[%emt 0:00:13]} 5. Bd3 {[%emt 0:00:02]} c5 {[%emt 0:01:16]} 6. Nge2 {[%emt 0:00:14]} d5 {[%emt 0:00:21]} 7. cxd5 {[%emt 0:01:51]} cxd4 {[%emt 0:00:20]} 8. exd4 {[%emt 0:02:03]} Nxd5 {[%emt 0:00:15]} 9. O-O {[%emt 0:00:20]} Nc6 {[%emt 0:04:11]} 10. Nxd5 {[%emt 0:10:58]} Qxd5 {[%emt 0:03:49]} 11. Bf4 {[%emt 0:03:36]} g6 {[%emt 0:11:42]} 12. a3 {[%emt 0:07:50]} Be7 {[%emt 0:01:37]} 13. Be3 {[%emt 0:10:48]} Bf6 {[%emt 0:09:39]} 14. Rc1 {[%emt 0:00:27]} Rd8 {[%emt 0:04:07]} 15. Bc4 {[%emt 0:00:49]} Qd6 {[%emt 0:04:24]} 16. Qc2 {[%emt 0:19:17]} Nxd4 {[%emt 0:12:27]} 17. Nxd4 {[%emt 0:00:05]} Bxd4 {[%emt 0:00:05]} 18. Bxd4 {[%emt 0:00:01]} Qxd4 {[%emt 0:00:06]} 19. Rfd1 {[%emt 0:00:02]} Qb6 {[%emt 0:02:02]} 20. Rxd8+ {[%emt 0:00:05]} Qxd8 {[%emt 0:00:04]} 21. Rd1 {[%emt 0:00:02]} Qc7 {[%emt 0:05:31]} 22. Bb3 {[%emt 0:04:33]} Qxc2 {[%emt 0:08:29]} 23. Rd8+ {[%emt 0:01:12]} Kg7 {[%emt 0:00:03]} 24. Bxc2 {[%emt 0:00:02]} Kf6 {[%emt 0:00:56]} 25. f4 {[%emt 0:02:47]} Ke7 {[%emt 0:03:03]} 26. Rh8 {[%emt 0:00:07]} h5 {[%emt 0:00:20]} 27. Kf2 {[%emt 0:05:14]} Kd7 {[%emt 0:10:29]} 28. Ke3 {[%emt 0:00:17]} a5 {[%emt 0:02:56]} 29. Ba4+ {[%emt 0:02:04]} Kd6 {[%emt 0:02:48]} 30. Bc2 {[%emt 0:01:44]} Kd7 {[%emt 0:05:54]} 31. Kd4 {[%emt 0:02:02]} a4 {[%emt 0:02:59]} 32. Rh7 {[%emt 0:00:51]} Ke8 {[%emt 0:03:08]} 33. Ke5 {[%emt 0:10:31]} Ra6 {[%emt 0:00:12]} 34. Rh8+ {[%emt 0:01:46]} Kd7 {[%emt 0:00:07]} 35. Rf8 {[%emt 0:00:09]} f5 {[%emt 0:00:45]} 36. Rg8 {[%emt 0:03:07]} Kc7 {[%emt 0:00:55]} 37. Rxg6 {[%emt 0:00:23]} Bd7 {[%emt 0:00:33]} 38. Rg7 {[%emt 0:04:28]} Kd8 {[%emt 0:00:35]} 39. Bd1 {[%emt 0:03:05]} h4 {[%emt 0:00:36]} 40. g4 {[%emt 0:01:53]} fxg4 {[%emt 0:02:08]} 41. Rxg4 {[%emt 0:30:13]} Ra5+ {[%emt 0:07:55]} 42. Kf6 {[%emt 0:00:00]} Rf5+ {[%emt 0:00:58]} 43. Kg7 {[%emt 0:00:00]} h3 {[%emt 0:01:03]} 44. Rh4 {[%emt 0:00:00]} e5 {[%emt 0:03:02]} 45. fxe5 {[%emt 0:00:00]} Rxe5 {[%emt 0:00:15]} 46. Kf6 {[%emt 0:00:00]} Rf5+ {[%emt 0:03:07]} 47. Kg6 {[%emt 0:00:00]} Rf2 {[%emt 0:00:22]} 48. Bxa4 {[%emt 0:00:00]} Bxa4 {[%emt 0:01:58]} 49. Rxa4 {[%emt 0:00:00]} Rxh2 {[%emt 0:01:02]} 50. Rh4 {[%emt 0:00:00]} Rg2+ {[%emt 0:01:14]} 51. Kf5 {[%emt 0:00:00]} h2 {[%emt 0:00:15]} 52. b4 {[%emt 0:00:00]} Kc7 {[%emt 0:00:57]} 53. Rh6 {[%emt 0:00:00]} Ra2 {[%emt 0:00:18]} 54. Ke5 {[%emt 0:00:00]} Rxa3 {[%emt 0:00:13]} 55. Rxh2 {[%emt 0:00:00]} Kb6 {[%emt 0:03:27]} 56. Rh7 {[%emt 0:00:00]} Ra4 {[%emt 0:00:31]} 57. Kd4 {[%emt 0:00:00]} Rxb4+ {[%emt 0:00:04]} 58. Kc3 {[%emt 0:00:00]} Rg4 {[%emt 0:00:08]} 59. Rh5 {[%emt 0:00:00]} Kc6 {[%emt 0:00:12]} 60. Kb3 {[%emt 0:00:00]} Rd4 {[%emt 0:00:10]} 61. Kc3 {[%emt 0:00:00]} Rd5 {[%emt 0:00:10]} 62. Rh7 {[%emt 0:00:00]} Rg5 {[%emt 0:00:18]} 63. Kb4 {[%emt 0:00:00]} Rg4+ {[%emt 0:00:08]} 64. Kb3 {[%emt 0:00:00]} b5 {[%emt 0:00:10]} 1/2-1/2

[Event "7th Francophone-ch 2019"]
[Site "Paris"]
[Date "2019.08.07"]
[Round "4.3"]
[White "Bergez, Luc"]
[Black "Rakotomaharo, Fy Antenaina"]
[Result "1-0"]
[ECO "B20"]
[WhiteElo "2308"]
[BlackElo "2419"]
[Annotator "NA"]
[PlyCount "149"]
[EventDate "2019.08.04"]
[EventType "swiss"]
[EventCountry "FRA"]
[SourceTitle "playchess.com"]
[Source "ChessBase"]
[SourceQuality "1"]
[TimeControl "40/5400+30:1800+30"]

1. e4 {[%emt 0:00:00]} c5 {[%emt 0:00:00]} 2. d3 {[%emt 0:00:00]} d5 {[%emt 0:00:00]} 3. exd5 {[%emt 0:00:36]} Qxd5 {[%emt 0:00:00]} 4. Nc3 {[%emt 0:01:29]} Qd8 {[%emt 0:00:00]} 5. Nf3 {[%emt 0:06:40]} Nc6 {[%emt 0:00:11]} 6. g3 {[%emt 0:01:44]} Nf6 {[%emt 0:00:05]} 7. Bg2 {[%emt 0:00:15]} e6 {[%emt 0:00:04]} 8. O-O {[%emt 0:01:35]} Be7 {[%emt 0:00:28]} 9. Bf4 {[%emt 0:04:09]} O-O {[%emt 0:00:45]} 10. Re1 {[%emt 0:05:49]} a6 {[%emt 0:08:57]} 11. a4 {[%emt 0:04:43]} Nb4 {[%emt 0:08:34]} 12. Ne5 {[%emt 0:03:02]} Nfd5 {[%emt 0:02:41]} 13. Bd2 {[%emt 0:07:15]} Bf6 {[%emt 0:03:29]} 14. a5 {[%emt 0:03:45]} Rb8 {[%emt 0:11:03]} 15. Nc4 {[%emt 0:01:23]} Bd7 {[%emt 0:07:46]} 16. Ne4 {[%emt 0:03:46]} Be7 {[%emt 0:02:17]} 17. Ne5 {[%emt 0:02:46]} Be8 {[%emt 0:03:56]} 18. f4 {[%emt 0:12:28]} f6 {[%emt 0:10:07]} 19. Nc4 {[%emt 0:00:51]} Bf7 {[%emt 0:00:03]} 20. Nf2 {[%emt 0:05:11]} Nc7 {[%emt 0:04:13]} 21. Be4 {[%emt 0:08:34]} Nb5 {[%emt 0:01:45]} 22. c3 {[%emt 0:01:23]} Nd5 {[%emt 0:09:35]} 23. Bg2 {[%emt 0:02:37]} Nd6 {[%emt 0:03:59]} 24. Ne4 {[%emt 0:01:01]} Nb5 {[%emt 0:00:31]} 25. Qf3 {[%emt 0:01:55]} Qc7 {[%emt 0:00:43]} 26. Re2 {[%emt 0:01:02]} Na7 {[%emt 0:03:24]} 27. Be1 {[%emt 0:00:53]} e5 {[%emt 0:05:43]} 28. fxe5 {[%emt 0:02:15]} fxe5 {[%emt 0:00:01]} 29. Bd2 {[%emt 0:05:20]} Be8 {[%emt 0:08:58]} 30. Qg4 {[%emt 0:00:30]} Bd7 {[%emt 0:00:04]} 31. Qh5 {[%emt 0:00:18]} Nc6 {[%emt 0:01:54]} 32. Rf2 {[%emt 0:03:30]} Rxf2 {[%emt 0:00:58]} 33. Nxf2 {[%emt 0:00:07]} Nf6 {[%emt 0:01:24]} 34. Qe2 {[%emt 0:00:15]} Be6 {[%emt 0:01:50]} 35. Nxe5 {[%emt 0:06:16]} Nxe5 {[%emt 0:01:00]} 36. d4 {[%emt 0:01:48]} cxd4 {[%emt 0:00:53]} 37. cxd4 {[%emt 0:00:07]} Bc4 {[%emt 0:00:36]} 38. Qxe5 {[%emt 0:00:15]} Bd6 {[%emt 0:00:10]} 39. Qg5 {[%emt 0:00:34]} Re8 {[%emt 0:00:16]} 40. Rc1 {[%emt 0:02:01]} Qf7 {[%emt 0:00:09]} 41. Ng4 {[%emt 0:05:07]} Nxg4 {[%emt 0:03:56]} 42. Qxg4 {[%emt 0:04:12]} Rf8 {[%emt 0:00:09]} 43. Bf4 {[%emt 0:03:17]} Bb4 {[%emt 0:06:06]} 44. d5 {[%emt 0:02:14]} Bxd5 {[%emt 0:09:05]} 45. Rc7 {[%emt 0:01:03]} Be6 {[%emt 0:00:03]} 46. Rxf7 {[%emt 0:03:05]} Bxg4 {[%emt 0:00:13]} 47. Rxb7 {[%emt 0:00:29]} Bc5+ {[%emt 0:01:31]} 48. Kh1 {[%emt 0:00:11]} Rd8 {[%emt 0:00:03]} 49. Rb8 {[%emt 0:02:50]} Rxb8 {[%emt 0:04:11]} 50. Bxb8 {[%emt 0:00:02]} Bb4 {[%emt 0:00:47]} 51. Bd5+ {[%emt 0:02:16]} Kf8 {[%emt 0:00:05]} 52. Bc7 {[%emt 0:00:12]} Be2 {[%emt 0:00:23]} 53. Kg2 {[%emt 0:00:18]} Ke7 {[%emt 0:01:38]} 54. Kf2 {[%emt 0:00:43]} Bb5 {[%emt 0:00:06]} 55. Ke3 {[%emt 0:01:20]} Kd7 {[%emt 0:05:00]} 56. Bb6 {[%emt 0:00:15]} Be1 {[%emt 0:00:14]} 57. Be4 {[%emt 0:01:10]} h6 {[%emt 0:02:00]} 58. Bd4 {[%emt 0:01:51]} g5 {[%emt 0:00:16]} 59. Bc3 {[%emt 0:00:18]} Bxc3 {[%emt 0:00:17]} 60. bxc3 {[%emt 0:00:02]} Kc7 {[%emt 0:03:04]} 61. Kd4 {[%emt 0:00:27]} Bd7 {[%emt 0:00:13]} 62. Ke5 {[%emt 0:03:03]} h5 {[%emt 0:01:52]} 63. h4 {[%emt 0:01:34]} gxh4 {[%emt 0:00:27]} 64. gxh4 {[%emt 0:00:06]} Bg4 {[%emt 0:01:04]} 65. Kd5 {[%emt 0:01:13]} Be2 {[%emt 0:00:22]} 66. Kc5 {[%emt 0:00:11]} Bg4 {[%emt 0:00:29]} 67. Bd3 {[%emt 0:00:23]} Kb7 {[%emt 0:00:08]} 68. Kd6 {[%emt 0:00:08]} Bf3 {[%emt 0:00:23]} 69. Bf5 {[%emt 0:00:38]} Kb8 {[%emt 0:00:06]} 70. c4 {[%emt 0:00:13]} Bg4 {[%emt 0:01:24]} 71. Bd7 {[%emt 0:00:19]} Bf3 {[%emt 0:00:22]} 72. c5 {[%emt 0:00:10]} Bb7 {[%emt 0:00:33]} 73. c6 {[%emt 0:01:19]} Bc8 {[%emt 0:00:00]} 74. Bxc8 {[%emt 0:00:20]} Kxc8 {[%emt 0:00:07]} 75. c7 {[%emt 0:00:11]} 1-0

[Event "7th Francophone-ch 2019"]
[Site "Paris"]
[Date "2019.08.07"]
[Round "4.4"]
[White "Okhotnik, Vladimir"]
[Black "Haie, Arnaud"]
[Result "1-0"]
[ECO "B22"]
[WhiteElo "2381"]
[BlackElo "2130"]
[Annotator "NA"]
[PlyCount "139"]
[EventDate "2019.08.04"]
[EventType "swiss"]
[EventCountry "FRA"]
[SourceTitle "playchess.com"]
[Source "ChessBase"]
[SourceQuality "1"]
[TimeControl "40/5400+30:1800+30"]

1. e4 {[%emt 0:00:00]} c5 {[%emt 0:00:00]} 2. Nf3 {[%emt 0:00:00]} e6 {[%emt 0:00:00]} 3. c3 {[%emt 0:00:13]} Nf6 {[%emt 0:00:29]} 4. e5 {[%emt 0:00:13]} Nd5 {[%emt 0:00:14]} 5. g3 {[%emt 0:00:18]} Nc6 {[%emt 0:00:37]} 6. Bg2 {[%emt 0:00:14]} d6 {[%emt 0:01:03]} 7. exd6 {[%emt 0:00:07]} Bxd6 {[%emt 0:00:16]} 8. d4 {[%emt 0:00:06]} O-O {[%emt 0:01:26]} 9. O-O {[%emt 0:00:04]} Bd7 {[%emt 0:02:00]} 10. dxc5 {[%emt 0:01:52]} Bxc5 {[%emt 0:01:45]} 11. Nbd2 {[%emt 0:00:03]} Qc7 {[%emt 0:22:49]} 12. Ne4 {[%emt 0:13:07]} Be7 {[%emt 0:00:30]} 13. c4 {[%emt 0:02:27]} Nf6 {[%emt 0:03:58]} 14. Bf4 {[%emt 0:09:44]} Qd8 {[%emt 0:21:13]} 15. Qe2 {[%emt 0:03:02]} Qb6 {[%emt 0:10:31]} 16. Rfd1 {[%emt 0:01:33]} Rfd8 {[%emt 0:01:07]} 17. Nd6 {[%emt 0:07:43]} Be8 {[%emt 0:02:27]} 18. Nxe8 {[%emt 0:06:12]} Nxe8 {[%emt 0:01:32]} 19. b3 {[%emt 0:05:48]} Bc5 {[%emt 0:11:34]} 20. Bg5 {[%emt 0:00:27]} Rd6 {[%emt 0:02:04]} 21. Rxd6 {[%emt 0:01:30]} Nxd6 {[%emt 0:00:19]} 22. Rd1 {[%emt 0:00:17]} Nf5 {[%emt 0:01:47]} 23. g4 {[%emt 0:02:02]} Nfe7 {[%emt 0:04:27]} 24. Bh4 {[%emt 0:03:01]} Ng6 {[%emt 0:00:49]} 25. Bg3 {[%emt 0:00:18]} Rd8 {[%emt 0:00:14]} 26. h4 {[%emt 0:03:19]} h6 {[%emt 0:02:00]} 27. h5 {[%emt 0:00:19]} Nf8 {[%emt 0:00:33]} 28. Rxd8 {[%emt 0:01:02]} Qxd8 {[%emt 0:00:10]} 29. Ne5 {[%emt 0:01:52]} Nd4 {[%emt 0:02:46]} 30. Qe4 {[%emt 0:00:46]} b6 {[%emt 0:00:32]} 31. Kh2 {[%emt 0:01:59]} f5 {[%emt 0:03:22]} 32. Qb7 {[%emt 0:03:24]} Qf6 {[%emt 0:00:47]} 33. Nd3 {[%emt 0:04:37]} fxg4 {[%emt 0:01:23]} 34. b4 {[%emt 0:00:47]} Be7 {[%emt 0:00:32]} 35. Qxa7 {[%emt 0:01:02]} Qf7 {[%emt 0:01:10]} 36. Nf4 {[%emt 0:00:58]} Bxb4 {[%emt 0:00:55]} 37. Qxb6 {[%emt 0:00:07]} Bc3 {[%emt 0:00:11]} 38. Qd8 {[%emt 0:01:13]} Qf5 {[%emt 0:00:47]} 39. Qa8 {[%emt 0:01:15]} Bd2 {[%emt 0:00:33]} 40. Be4 {[%emt 0:03:42]} Qf6 {[%emt 0:00:34]} 41. Ng6 {[%emt 0:31:07]} Bb4 {[%emt 0:03:47]} 42. Qb8 {[%emt 0:00:00]} Bc5 {[%emt 0:01:43]} 43. Qc7 {[%emt 0:00:00]} Qg5 {[%emt 0:06:22]} 44. Qe5 {[%emt 0:00:00]} Nd7 {[%emt 0:09:59]} 45. Qxg5 {[%emt 0:00:00]} hxg5 {[%emt 0:00:02]} 46. Ne5 {[%emt 0:00:00]} Nf6 {[%emt 0:00:56]} 47. Bg6 {[%emt 0:00:00]} Bd6 {[%emt 0:02:24]} 48. Nd3 {[%emt 0:00:00]} e5 {[%emt 0:01:36]} 49. Kg2 {[%emt 0:00:00]} Nf3 {[%emt 0:01:03]} 50. a4 {[%emt 0:00:00]} Bc7 {[%emt 0:00:00]} 51. Bf5 {[%emt 0:00:00]} e4 {[%emt 0:04:42]} 52. Bxc7 {[%emt 0:02:09]} exd3 {[%emt 0:00:07]} 53. Kf1 {[%emt 0:00:11]} d2 {[%emt 0:01:07]} 54. Bc2 {[%emt 0:00:21]} Nd4 {[%emt 0:02:11]} 55. Bd1 {[%emt 0:00:09]} Ne4 {[%emt 0:00:28]} 56. Bb6 {[%emt 0:04:07]} Nc6 {[%emt 0:01:13]} 57. Ke2 {[%emt 0:02:13]} Ne5 {[%emt 0:00:07]} 58. Bb3 {[%emt 0:00:42]} Nf3 {[%emt 0:00:52]} 59. Kd3 {[%emt 0:02:25]} Nf6 {[%emt 0:00:53]} 60. a5 {[%emt 0:00:37]} Nd7 {[%emt 0:00:01]} 61. c5+ {[%emt 0:00:38]} Kf8 {[%emt 0:00:39]} 62. a6 {[%emt 0:00:19]} Nde5+ {[%emt 0:00:12]} 63. Ke4 {[%emt 0:00:39]} Nc6 {[%emt 0:01:02]} 64. a7 {[%emt 0:00:10]} Nxa7 {[%emt 0:00:26]} 65. Bxa7 {[%emt 0:00:07]} Ke7 {[%emt 0:00:12]} 66. Kd5 {[%emt 0:00:08]} Kd7 {[%emt 0:00:20]} 67. c6+ {[%emt 0:00:11]} Kc7 {[%emt 0:00:13]} 68. Bc5 {[%emt 0:00:07]} Nh4 {[%emt 0:00:48]} 69. Bd6+ {[%emt 0:00:06]} Kc8 {[%emt 0:00:12]} 70. Kc5 {[%emt 0:00:04]} 1-0

[Event "7th Francophone-ch 2019"]
[Site "Paris"]
[Date "2019.08.07"]
[Round "4.5"]
[White "Eugene, Floryan"]
[Black "Bianchi, Guillaume"]
[Result "1-0"]
[ECO "C02"]
[WhiteElo "2300"]
[BlackElo "2101"]
[Annotator "NA"]
[PlyCount "79"]
[EventDate "2019.08.04"]
[EventType "swiss"]
[EventCountry "FRA"]
[SourceTitle "playchess.com"]
[Source "ChessBase"]
[SourceQuality "1"]
[TimeControl "40/5400+30:1800+30"]

1. e4 {[%emt 0:10:08]} e6 {[%emt 0:00:00]} 2. d4 {[%emt 0:02:16]} d5 {[%emt 0:00:05]} 3. e5 {[%emt 0:05:54]} c5 {[%emt 0:00:13]} 4. c3 {[%emt 0:00:04]} Nc6 {[%emt 0:00:10]} 5. Nf3 {[%emt 0:00:07]} Bd7 {[%emt 0:00:27]} 6. Bd3 {[%emt 0:02:11]} cxd4 {[%emt 0:01:28]} 7. cxd4 {[%emt 0:00:11]} Qb6 {[%emt 0:00:18]} 8. O-O {[%emt 0:00:10]} Nxd4 {[%emt 0:01:49]} 9. Nbd2 {[%emt 0:00:22]} Nc6 {[%emt 0:01:39]} 10. Nb3 {[%emt 0:02:22]} Qc7 {[%emt 0:11:28]} 11. Be3 {[%emt 0:08:22]} Nge7 {[%emt 0:05:28]} 12. Rc1 {[%emt 0:01:21]} Ng6 {[%emt 0:02:14]} 13. Nc5 {[%emt 0:00:40]} Be7 {[%emt 0:13:10]} 14. b4 {[%emt 0:01:11]} a6 {[%emt 0:08:12]} 15. a4 {[%emt 0:02:18]} Qb8 {[%emt 0:02:55]} 16. b5 axb5 {[%emt 0:00:30]} 17. Bxb5 Bxc5 {[%emt 0:00:30]} 18. Bxc5 f6 {[%emt 0:00:30]} 19. exf6 gxf6 {[%emt 0:00:30]} 20. Re1 Kf7 {[%emt 0:00:30]} 21. Nd4 Qd8 {[%emt 0:00:30]} 22. Rb1 Re8 {[%emt 0:00:30]} 23. Qh5 Kg7 {[%emt 0:00:30]} 24. Bxc6 bxc6 {[%emt 0:00:30]} 25. Rb7 Rb8 {[%emt 0:00:30]} 26. Nxc6 Rxb7 {[%emt 0:00:30]} 27. Nxd8 Rxd8 {[%emt 0:00:30]} 28. a5 Rb5 {[%emt 0:00:30]} 29. Be3 e5 {[%emt 0:00:30]} 30. Qh6+ Kg8 {[%emt 0:00:30]} 31. Bb6 Rc8 {[%emt 0:00:30]} 32. h4 Rc6 {[%emt 0:00:30]} 33. h5 Nf4 {[%emt 0:00:30]} 34. Bd8 Ne6 {[%emt 0:00:30]} 35. Bxf6 e4 {[%emt 0:00:30]} 36. Re3 Kf7 {[%emt 0:00:30]} 37. Rg3 Rxa5 {[%emt 0:00:30]} 38. Be5 Nf8 {[%emt 0:00:30]} 39. Qf4+ Ke8 {[%emt 0:00:30]} 40. Rg8 1-0

[Event "7th Francophone-ch 2019"]
[Site "Paris"]
[Date "2019.08.07"]
[Round "4.6"]
[White "Dornbusch, Tatiana"]
[Black "Philippe, Guillaume"]
[Result "0-1"]
[ECO "E16"]
[WhiteElo "2284"]
[BlackElo "2344"]
[Annotator "NA"]
[PlyCount "66"]
[EventDate "2019.08.04"]
[EventType "swiss"]
[EventCountry "FRA"]
[SourceTitle "playchess.com"]
[Source "ChessBase"]
[SourceQuality "1"]
[TimeControl "40/5400+30:1800+30"]

1. d4 {[%emt 0:00:00]} Nf6 {[%emt 0:10:23]} 2. Nf3 {[%emt 0:00:25]} e6 {[%emt 0:00:15]} 3. c4 {[%emt 0:00:17]} b6 {[%emt 0:00:08]} 4. g3 {[%emt 0:00:23]} Ba6 {[%emt 0:00:21]} 5. Nbd2 {[%emt 0:03:33]} Bb7 {[%emt 0:06:02]} 6. Bg2 {[%emt 0:00:19]} Be7 {[%emt 0:01:23]} 7. Qc2 {[%emt 0:07:09]} d5 {[%emt 0:01:30]} 8. O-O {[%emt 0:03:49]} O-O {[%emt 0:00:31]} 9. Ne5 {[%emt 0:13:20]} c5 {[%emt 0:04:00]} 10. dxc5 {[%emt 0:08:15]} bxc5 {[%emt 0:00:09]} 11. Nb3 {[%emt 0:00:30]} Qc7 {[%emt 0:12:27]} 12. Bf4 {[%emt 0:07:21]} g5 {[%emt 0:14:37]} 13. Ng6 {[%emt 0:08:14]} gxf4 {[%emt 0:00:24]} 14. Nxf8 {[%emt 0:00:09]} Bxf8 {[%emt 0:00:48]} 15. cxd5 {[%emt 0:05:02]} Bxd5 {[%emt 0:04:01]} 16. Bxd5 {[%emt 0:01:30]} Nxd5 {[%emt 0:00:22]} 17. Rac1 {[%emt 0:02:01]} Nd7 {[%emt 0:01:39]} 18. Qe4 {[%emt 0:01:27]} Rb8 {[%emt 0:01:55]} 19. Kh1 {[%emt 0:03:20]} Rb4 {[%emt 0:07:38]} 20. Qg2 {[%emt 0:04:23]} fxg3 {[%emt 0:08:22]} 21. e4 {[%emt 0:11:02]} N5f6 {[%emt 0:00:41]} 22. Rc3 {[%emt 0:08:05]} Nxe4 {[%emt 0:04:19]} 23. Re3 {[%emt 0:00:28]} f5 {[%emt 0:01:39]} 24. a3 {[%emt 0:05:28]} Rb8 {[%emt 0:03:14]} 25. fxg3 {[%emt 0:00:04]} Bh6 {[%emt 0:02:06]} 26. Rxe4 {[%emt 0:01:59]} fxe4 {[%emt 0:00:16]} 27. Qh3 {[%emt 0:00:13]} Rf8 {[%emt 0:04:04]} 28. Qxe6+ {[%emt 0:01:07]} Kh8 {[%emt 0:00:13]} 29. Rxf8+ {[%emt 0:01:48]} Bxf8 {[%emt 0:00:09]} 30. Qxe4 {[%emt 0:00:03]} Qe5 {[%emt 0:01:39]} 31. Qxe5+ {[%emt 0:01:52]} Nxe5 {[%emt 0:00:05]} 32. Nd2 {[%emt 0:00:18]} Bh6 {[%emt 0:03:52]} 33. Ne4 {[%emt 0:00:04]} c4 {[%emt 0:01:33]} 0-1

[Event "7th Francophone-ch 2019"]
[Site "Paris"]
[Date "2019.08.07"]
[Round "4.7"]
[White "Huynh, Laurent"]
[Black "David, Alberto"]
[Result "0-1"]
[ECO "B06"]
[WhiteElo "2111"]
[BlackElo "2553"]
[Annotator "ChessBase"]
[PlyCount "66"]
[EventDate "2019.08.04"]
[EventType "swiss"]
[EventCountry "FRA"]
[SourceTitle "playchess.com"]
[Source "ChessBase"]
[SourceQuality "1"]
[TimeControl "40/5400+30:1800+30"]

1. e4 {[%emt 0:00:00]} c6 {[%emt 0:01:08]} 2. d4 {[%emt 0:00:09]} g6 {[%emt 0:00:20]} 3. Nf3 {[%emt 0:01:38]} Bg7 {[%emt 0:00:21]} 4. Bd3 {[%emt 0:00:55]} d6 {[%emt 0:00:38]} 5. a4 {[%emt 0:01:05]} Nf6 {[%emt 0:04:20]} 6. O-O {[%emt 0:01:35]} O-O {[%emt 0:00:06]} 7. Re1 {[%emt 0:00:45]} c5 {[%emt 0:11:58]} 8. c3 {[%emt 0:08:36]} cxd4 {[%emt 0:06:27]} 9. cxd4 {[%emt 0:07:05]} Nc6 {[%emt 0:00:06]} 10. d5 {[%emt 0:03:33]} Nb4 {[%emt 0:01:00]} 11. Nc3 {[%emt 0:00:54]} Bg4 {[%emt 0:01:23]} 12. Be2 {[%emt 0:02:27]} Nd7 {[%emt 0:01:40]} 13. Be3 {[%emt 0:02:44]} a5 {[%emt 0:03:59]} 14. Nd4 {[%emt 0:17:26]} Bxe2 {[%emt 0:00:31]} 15. Qxe2 {[%emt 0:00:12]} Rc8 {[%emt 0:00:56]} 16. Rad1 {[%emt 0:02:07]} Qc7 {[%emt 0:06:44]} 17. Ncb5 {[%emt 0:19:52]} Qc4 {[%emt 0:13:13]} 18. Qxc4 {[%emt 0:12:53]} Rxc4 {[%emt 0:00:05]} 19. Rc1 {[%emt 0:00:05]} Rxc1 {[%emt 0:04:06]} 20. Rxc1 {[%emt 0:00:10]} Nc5 {[%emt 0:00:04]} 21. b3 {[%emt 0:00:27]} Nxe4 {[%emt 0:05:40]} 22. Nc7 {[%emt 0:00:48]} Rc8 {[%emt 0:03:06]} 23. Ndb5 {[%emt 0:04:15]} Nc3 {[%emt 0:01:40]} 24. Rxc3 {[%emt 0:00:38]} Bxc3 {[%emt 0:00:06]} 25. Bb6 {[%emt 0:00:08]} Na6 {[%emt 0:01:59]} 26. Nxc3 {[%emt 0:01:42]} Nxc7 {[%emt 0:00:08]} 27. Kf1 {[%emt 0:00:14]} Na6 {[%emt 0:00:20]} 28. Nb5 {[%emt 0:01:02]} Rc1+ {[%emt 0:00:46]} 29. Ke2 {[%emt 0:00:07]} Nc5 {[%emt 0:00:09]} 30. Bxa5 {[%emt 0:00:39]} Nxb3 {[%emt 0:00:06]} 31. Bd8 {[%emt 0:00:05]} Kf8 {[%emt 0:00:24]} 32. Bb6 {[%emt 0:02:23]} Rc4 {[%emt 0:01:03]} 33. a5 {[%emt 0:02:10]} Nxa5 {[%emt 0:00:22]} 0-1

[Event "7th Francophone-ch 2019"]
[Site "Paris"]
[Date "2019.08.07"]
[Round "4.8"]
[White "Mastrovasilis, Dimitrios"]
[Black "Amdouni, Zoubaier"]
[Result "1/2-1/2"]
[ECO "B30"]
[WhiteElo "2589"]
[BlackElo "2248"]
[Annotator "ChessBase"]
[PlyCount "97"]
[EventDate "2019.08.04"]
[EventType "swiss"]
[EventCountry "FRA"]
[SourceTitle "playchess.com"]
[Source "ChessBase"]
[SourceQuality "1"]
[TimeControl "40/5400+30:1800+30"]

1. e4 {[%emt 0:02:11]} c5 {[%emt 0:00:00]} 2. Nf3 {[%emt 0:00:23]} Nc6 {[%emt 0:00:07]} 3. Bb5 {[%emt 0:00:25]} e6 {[%emt 0:00:04]} 4. O-O {[%emt 0:00:27]} Nge7 {[%emt 0:00:07]} 5. d4 {[%emt 0:00:21]} cxd4 {[%emt 0:00:16]} 6. Nxd4 {[%emt 0:00:17]} Qb6 {[%emt 0:03:44]} 7. Nxc6 {[%emt 0:00:15]} Qxb5 {[%emt 0:06:28]} 8. Nd4 {[%emt 0:00:38]} Qe5 {[%emt 0:00:20]} 9. f4 {[%emt 0:00:25]} Qa5 {[%emt 0:08:12]} 10. Be3 {[%emt 0:05:20]} d5 {[%emt 0:07:21]} 11. e5 {[%emt 0:24:33]} Bd7 {[%emt 0:05:01]} 12. Nd2 {[%emt 0:01:44]} Rc8 {[%emt 0:00:40]} 13. Kh1 {[%emt 0:05:35]} g6 {[%emt 0:08:12]} 14. Rf3 {[%emt 0:03:53]} Bg7 {[%emt 0:04:28]} 15. Bf2 {[%emt 0:05:56]} O-O {[%emt 0:09:31]} 16. N2b3 {[%emt 0:04:42]} Qc7 {[%emt 0:03:33]} 17. Bh4 {[%emt 0:00:37]} f6 {[%emt 0:10:41]} 18. exf6 {[%emt 0:03:23]} Bxf6 {[%emt 0:00:12]} 19. Bxf6 {[%emt 0:03:55]} Rxf6 {[%emt 0:03:04]} 20. Qd2 {[%emt 0:00:15]} Rcf8 {[%emt 0:01:11]} 21. Raf1 {[%emt 0:05:56]} Nc8 {[%emt 0:11:38]} 22. Nc1 {[%emt 0:06:44]} Nd6 {[%emt 0:00:29]} 23. Nd3 {[%emt 0:01:33]} Ne4 {[%emt 0:01:23]} 24. Qe3 {[%emt 0:01:05]} R6f7 {[%emt 0:11:57]} 25. Ne5 {[%emt 0:04:20]} Rg7 {[%emt 0:00:08]} 26. g3 {[%emt 0:05:00]} Qa5 {[%emt 0:03:22]} 27. a3 {[%emt 0:01:39]} Qb6 {[%emt 0:00:47]} 28. b3 {[%emt 0:02:55]} Qd6 {[%emt 0:00:26]} 29. b4 {[%emt 0:01:22]} a5 {[%emt 0:00:28]} 30. bxa5 {[%emt 0:01:37]} Bc6 {[%emt 0:00:23]} 31. a6 {[%emt 0:01:05]} Ra8 {[%emt 0:00:40]} 32. a7 {[%emt 0:03:15]} Rc7 {[%emt 0:00:32]} 33. Rb1 {[%emt 0:01:19]} Be8 {[%emt 0:00:33]} 34. Ne2 {[%emt 0:01:40]} Qa6 {[%emt 0:00:20]} 35. Rb6 {[%emt 0:02:04]} Qxa7 {[%emt 0:00:06]} 36. Rxe6 {[%emt 0:00:25]} Qxe3 {[%emt 0:00:22]} 37. Rxe3 {[%emt 0:00:02]} Rxc2 {[%emt 0:00:25]} 38. Nd4 {[%emt 0:00:38]} Ra2 {[%emt 0:00:51]} 39. Re7 {[%emt 0:00:35]} Rc8 {[%emt 0:00:43]} 40. Re2 {[%emt 0:00:02]} Rxe2 {[%emt 0:00:37]} 41. Nxe2 {[%emt 0:30:02]} Bb5 {[%emt 0:30:21]} 42. Nd4 {[%emt 0:00:00]} Rc1+ {[%emt 0:00:00]} 43. Kg2 {[%emt 0:00:00]} Bf1+ {[%emt 0:00:00]} 44. Kf3 {[%emt 0:00:00]} h5 {[%emt 0:00:00]} 45. Re8+ {[%emt 0:00:00]} Kg7 {[%emt 0:00:00]} 46. Re7+ {[%emt 0:00:00]} Kg8 {[%emt 0:00:00]} 47. Re8+ {[%emt 0:00:00]} Kg7 {[%emt 0:00:00]} 48. Re7+ {[%emt 0:00:00]} Kg8 {[%emt 0:00:00]} 49. Re8+ {[%emt 0:00:00]} 1/2-1/2